bitfinex-derivatives/quotes_BTCF0:USTF0_20250704
["timestamp","ask_amount","ask_price","bid_price","bid_amount"]
[1751644414057,1.88923125,107770.0,107760.0,0.05761046]
[1751644414256,1.88723125,107770.0,107760.0,0.05661046]
[1751644414461,1.89223125,107770.0,107760.0,0.05761046]
[1751644414761,1.89223125,107770.0,107760.0,0.07196337]
[1751644415760,1.89223125,107770.0,107760.0,0.10903458]
[1751644416860,2.25303125,107770.0,107760.0,0.05342412]
[1751644417062,0.1855342,107760.0,107750.0,0.075359]
[1751644417261,1.30340794,107760.0,107750.0,0.05645202]
[1751644417555,0.94542107,107760.0,107750.0,0.05645202]
[1751644418354,0.94642107,107760.0,107750.0,0.05745202]
[1751644418554,0.94742107,107760.0,107750.0,0.05745202]
[1751644418861,0.94742107,107760.0,107750.0,0.06656607]
[1751644419262,1.80110107,107760.0,107750.0,0.06656607]
[1751644420164,1.80010107,107760.0,107750.0,0.05645202]
[1751644420363,1.80310107,107760.0,107750.0,0.05745202]
[1751644420563,1.80210107,107760.0,107750.0,0.05745202]
[1751644420764,1.80710107,107760.0,107750.0,0.05745202]
[1751644420965,2.16508794,107760.0,107750.0,0.05745202]
[1751644422267,2.16508794,107760.0,107750.0,0.08523075]
[1751644422560,2.16508794,107760.0,107750.0,0.06733827]
[1751644422762,2.16508794,107760.0,107750.0,0.03026301]
[1751644422973,2.17417698,107760.0,107750.0,0.03026301]
[1751644425162,2.17417698,107760.0,107750.0,0.00248428]
[1751644425566,1.4491142,107760.0,107750.0,0.00248428]
[1751644425864,1.80710107,107760.0,107750.0,0.03026301]
[1751644426065,0.95342107,107760.0,107750.0,0.03026301]
[1751644426463,2.04578107,107760.0,107750.0,0.03026301]
[1751644426766,0.95342107,107760.0,107750.0,0.03026301]
[1751644427068,2.04578107,107760.0,107750.0,0.03026301]
[1751644427266,2.04578107,107760.0,107750.0,0.00248428]
[1751644428267,2.04558107,107760.0,107750.0,0.00248428]
[1751644428669,2.04550107,107760.0,107750.0,0.00248428]
[1751644429261,2.04554107,107760.0,107750.0,0.03026301]
[1751644429466,2.04562107,107760.0,107750.0,0.00248428]
[1751644429667,0.95342107,107760.0,107750.0,0.00248428]
[1751644429868,2.04562107,107760.0,107750.0,0.03026301]
[1751644430068,2.04558107,107760.0,107750.0,0.00248428]
[1751644430566,1.80750107,107760.0,107750.0,0.00248428]
[1751644430766,2.04546107,107760.0,107750.0,0.00248428]
[1751644433672,2.40344794,107760.0,107750.0,0.00248428]
[1751644435171,2.39844794,107760.0,107750.0,0.03026301]
[1751644435365,2.40544794,107760.0,107750.0,0.03026301]
[1751644436168,2.40244794,107760.0,107750.0,0.02926301]
[1751644436367,1.31440794,107760.0,107750.0,0.02926301]
[1751644436572,2.40588794,107760.0,107750.0,0.02926301]
[1751644440971,2.04790107,107760.0,107750.0,0.02926301]
[1751644441166,2.04774107,107760.0,107750.0,0.02926301]
[1751644443580,2.04774107,107760.0,107750.0,0.02926301]
[1751644444176,2.04774107,107760.0,107750.0,0.09016301]
[1751644444579,2.04703702,107760.0,107750.0,0.09016301]
[1751644444774,1.65735015,107760.0,107750.0,0.09016301]
[1751644444981,1.38903015,107760.0,107750.0,0.11799474]
[1751644445478,1.74701702,107760.0,107750.0,0.11799474]
[1751644446281,1.74697702,107760.0,107750.0,0.11799474]
[1751644446477,1.38899015,107760.0,107750.0,0.11799474]
[1751644446880,1.38899015,107760.0,107750.0,0.06238428]
[1751644447081,1.38899015,107760.0,107750.0,0.09947333]
[1751644447381,1.38899015,107760.0,107750.0,0.11386564]
[1751644447984,1.74697702,107760.0,107750.0,0.11386564]
[1751644449280,1.74697702,107760.0,107750.0,0.09947333]
[1751644449478,1.76613816,107760.0,107750.0,0.11386603]
[1751644450886,1.7660053,107760.0,107750.0,0.11486603]
[1751644452276,1.7650053,107760.0,107750.0,0.11586603]
[1751644453082,1.76567893,107760.0,107750.0,0.10147333]
[1751644454384,1.76533401,107760.0,107750.0,0.10147333]
[1751644455294,1.76533401,107760.0,107750.0,0.11999474]
[1751644455790,0.91217401,107760.0,107750.0,0.11999474]
[1751644455990,0.55418714,107760.0,107750.0,0.66353311]
[1751644456185,1.40726714,107760.0,107750.0,0.66353311]
[1751644456793,0.55418714,107760.0,107750.0,0.11999474]
[1751644456988,0.55418714,107760.0,107750.0,0.30554624]
[1751644457485,0.55418714,107760.0,107750.0,0.99197493]
[1751644458284,0.55418714,107760.0,107750.0,0.77197493]
[1751644458694,0.55418714,107760.0,107750.0,1.00197493]
[1751644458994,0.55418714,107760.0,107750.0,0.66352784]
[1751644460387,0.55418714,107760.0,107750.0,0.30554097]
[1751644460591,0.55418714,107760.0,107750.0,0.41554097]
[1751644460792,0.21418714,107760.0,107750.0,0.37554097]
[1751644461095,0.53418714,107760.0,107750.0,0.67792265]
[1751644461390,0.30418714,107760.0,107750.0,0.67792265]
[1751644461695,0.54418714,107760.0,107750.0,0.31993578]
[1751644462494,0.54418714,107760.0,107750.0,0.37554097]
[1751644462794,0.54418714,107760.0,107750.0,0.73352784]
[1751644463093,0.54418714,107760.0,107750.0,0.18998947]
[1751644463296,0.90217401,107760.0,107750.0,0.13438428]
[1751644463492,0.90217401,107760.0,107750.0,0.17144117]
[1751644463889,0.90217401,107760.0,107750.0,0.00348428]
[1751644464192,1.32676088,107760.0,107750.0,0.0405426]
[1751644464391,0.96877401,107760.0,107750.0,0.0405426]
[1751644465898,0.37078714,107760.0,107750.0,0.58408097]
[1751644466199,1.40714714,107760.0,107750.0,0.60262784]
[1751644466495,1.40714714,107760.0,107750.0,0.69892784]
[1751644466697,1.40714714,107760.0,107750.0,1.01892784]
[1751644466902,1.40714714,107760.0,107750.0,0.69892784]
[1751644467090,1.06785129,107760.0,107750.0,0.80737493]
[1751644467296,1.37785129,107760.0,107750.0,0.80737493]
[1751644468096,1.37485129,107760.0,107750.0,1.02637493]
[1751644468293,1.37685129,107760.0,107750.0,1.02737493]
[1751644468698,0.52189129,107760.0,107750.0,1.02737493]
[1751644469100,0.107,107760.0,107750.0,1.02737493]
[1751644469499,0.2925343,107760.0,107750.0,1.02737493]
[1751644470897,0.172446,107770.0,107760.0,0.2782947]
[1751644470898,0.185517,107770.0,107760.0,0.2782947]
[1751644471202,0.18514522,107770.0,107760.0,1.13794611]
[1751644471899,0.53514522,107770.0,107760.0,1.09156401]
[1751644472206,0.89313209,107770.0,107760.0,0.27731674]
[1751644472499,0.98973209,107770.0,107760.0,0.01767693]
[1751644472805,0.98973209,107770.0,107760.0,0.07323363]
[1751644473301,0.99373209,107770.0,107760.0,0.40423363]
[1751644473490,0.99373209,107770.0,107760.0,0.07423363]
[1751644473491,1.84661209,107770.0,107760.0,0.07423363]
[1751644474498,1.84661209,107770.0,107760.0,0.05571995]
[1751644475294,1.84661209,107770.0,107760.0,0.08350444]
[1751644475495,1.84661209,107770.0,107760.0,0.08450444]
[1751644475496,1.84861209,107770.0,107760.0,0.08450444]
[1751644479101,1.84861209,107770.0,107760.0,0.02978449]
[1751644479902,2.39219096,107770.0,107760.0,9e-08]
[1751644480101,2.64219096,107770.0,107760.0,9e-08]
[1751644480599,0.1855347,107760.0,107750.0,7e-08]
[1751644480801,0.1855519,107750.0,107740.0,0.05461702]
[1751644481100,1.83221877,107750.0,107740.0,0.03704302]
[1751644482804,1.83321877,107750.0,107740.0,0.03804302]
[1751644483705,1.83325877,107750.0,107740.0,0.03804302]
[1751644484201,2.07113877,107750.0,107740.0,0.03804302]
[1751644485610,1.7131519,107750.0,107740.0,0.03804302]
[1751644485802,2.07113877,107750.0,107740.0,0.03804302]
[1751644488812,2.07113877,107750.0,107740.0,0.001]
[1751644491908,2.07213877,107750.0,107740.0,0.002]
[1751644495315,0.98133877,107750.0,107740.0,0.002]
[1751644495614,2.07213877,107750.0,107740.0,0.002]
[1751644501227,0.1855692,107740.0,107730.0,0.04628739]
[1751644501515,0.20496357,107730.0,107720.0,0.03704302]
[1751644501725,2.25592402,107730.0,107720.0,0.03704302]
[1751644502121,0.1856036,107720.0,107710.0,0.03889977]
[1751644502316,0.97609047,107720.0,107710.0,0.03852799]
[1751644502713,1.21397047,107720.0,107710.0,0.03852799]
[1751644502919,1.20997047,107720.0,107710.0,0.03852799]
[1751644503422,1.28468471,107720.0,107710.0,0.03852799]
[1751644503622,1.28368471,107720.0,107710.0,0.04252799]
[1751644503815,1.28368471,107720.0,107710.0,0.00548497]
[1751644504920,1.28468471,107720.0,107710.0,0.04352799]
[1751644505120,1.28468471,107720.0,107710.0,0.00648497]
[1751644506420,1.27267158,107720.0,107710.0,7e-08]
[1751644506621,1.04680471,107720.0,107710.0,7e-08]
[1751644506816,2.13768471,107720.0,107710.0,7e-08]
[1751644507821,0.1856381,107700.0,107690.0,0.14907305]
[1751644508020,1.74666497,107700.0,107690.0,0.14907305]
[1751644508215,1.74666497,107700.0,107690.0,0.15856212]
[1751644508818,1.3886781,107700.0,107690.0,0.15856212]
[1751644509023,1.74666497,107700.0,107690.0,0.34421742]
[1751644509325,0.5356381,107700.0,107690.0,0.84220429]
[1751644510018,0.5386381,107700.0,107690.0,0.29856212]
[1751644510218,0.5386381,107700.0,107690.0,0.48421742]
[1751644511411,0.5386381,107700.0,107690.0,0.15856212]
[1751644511917,0.5386381,107700.0,107690.0,0.40421742]
[1751644512320,0.5386381,107700.0,107690.0,0.21856212]
[1751644513022,0.89662497,107700.0,107690.0,0.45856212]
[1751644513422,0.89662497,107700.0,107690.0,0.64421742]
[1751644514112,0.89662497,107700.0,107690.0,0.45856212]
[1751644514924,0.89662497,107700.0,107690.0,0.41421742]
[1751644515122,0.89662497,107700.0,107690.0,0.66421742]
[1751644515323,0.89662497,107700.0,107690.0,0.47856212]
[1751644515522,0.89662497,107700.0,107690.0,0.66421742]
[1751644515919,0.89662497,107700.0,107690.0,0.34421742]
[1751644516124,0.89662497,107700.0,107690.0,0.39421742]
[1751644516425,0.89662497,107700.0,107690.0,0.67421742]
[1751644516620,1.33961184,107700.0,107690.0,0.06416212]
[1751644516925,0.98162497,107700.0,107690.0,0.0599191]
[1751644517921,0.98162497,107700.0,107690.0,0.09696212]
[1751644518124,0.98162497,107700.0,107690.0,0.28261742]
[1751644518324,0.98162497,107700.0,107690.0,0.09696212]
[1751644519230,0.98162497,107700.0,107690.0,0.28261742]
[1751644519833,1.33961184,107700.0,107690.0,0.04653209]
[1751644520329,1.33961184,107700.0,107690.0,0.06390481]
[1751644520529,0.98162497,107700.0,107690.0,0.06390481]
[1751644523627,0.1856553,107690.0,107680.0,0.0555567]
[1751644523833,0.91460376,107690.0,107680.0,0.1856726]
[1751644524133,0.1856726,107680.0,107670.0,0.40025208]
[1751644524326,0.95805947,107680.0,107670.0,0.72950305]
[1751644524521,0.95805947,107680.0,107670.0,0.91524705]
[1751644524726,0.3500726,107680.0,107670.0,0.91524705]
[1751644524932,0.99805947,107680.0,107670.0,0.94744705]
[1751644525329,0.63805947,107680.0,107670.0,0.94744705]
[1751644525529,0.2656726,107680.0,107670.0,0.98024705]
[1751644525729,0.5356726,107680.0,107670.0,0.98024705]
[1751644525933,0.89365947,107680.0,107670.0,0.98024705]
[1751644526629,0.89465947,107680.0,107670.0,0.98024705]
[1751644527336,0.89665947,107680.0,107670.0,0.92469035]
[1751644527536,0.5386726,107680.0,107670.0,0.92469035]
[1751644528332,0.2686726,107680.0,107670.0,0.92469035]
[1751644528535,0.5086726,107680.0,107670.0,0.92469035]
[1751644528728,0.2686726,107680.0,107670.0,0.73894635]
[1751644528934,0.5686726,107680.0,107670.0,0.73894635]
[1751644529335,0.5686726,107680.0,107670.0,0.81305186]
[1751644529937,0.2686726,107680.0,107670.0,0.81305186]
[1751644530134,0.5586726,107680.0,107670.0,0.81305186]
[1751644531337,0.1886726,107680.0,107670.0,0.81305186]
[1751644531642,0.5486726,107680.0,107670.0,1.17103873]
[1751644531836,0.1886726,107680.0,107670.0,1.17103873]
[1751644532036,0.2986726,107680.0,107670.0,1.17103873]
[1751644532537,0.2986726,107680.0,107670.0,1.09693322]
[1751644532740,0.113,107680.0,107670.0,2.00600132]
[1751644533037,0.2986725,107680.0,107670.0,2.00600132]
[1751644533629,0.113,107680.0,107670.0,2.00600132]
[1751644533833,0.2986726,107680.0,107670.0,2.00600132]
[1751644534248,0.003,107680.0,107670.0,2.00600132]
[1751644535039,0.003,107680.0,107670.0,2.36398819]
[1751644535342,0.003,107680.0,107670.0,2.86398819]
[1751644535938,0.003,107680.0,107670.0,2.14801445]
[1751644536237,0.003,107680.0,107670.0,2.45037322]
[1751644536644,0.1886726,107680.0,107670.0,2.45037322]
[1751644538034,0.003,107680.0,107670.0,2.45037322]
[1751644538233,0.20539652,107710.0,107700.0,0.1856381]
[1751644538437,0.0331,107720.0,107710.0,0.1856208]
[1751644538640,0.34817857,107730.0,107720.0,0.1856036]
[1751644538943,0.66780679,107730.0,107720.0,0.20355081]
[1751644539141,0.66780679,107730.0,107720.0,0.54918921]
[1751644539341,1.02579366,107730.0,107720.0,0.54918921]
[1751644539647,1.02579366,107730.0,107720.0,0.25918921]
[1751644540243,1.02579366,107730.0,107720.0,0.20355081]
[1751644541149,0.67480679,107730.0,107720.0,0.51307807]
[1751644541337,1.03279366,107730.0,107720.0,0.51307807]
[1751644541539,0.67480679,107730.0,107720.0,0.51307807]
[1751644542355,0.67480679,107730.0,107720.0,0.21307807]
[1751644542647,1.03279366,107730.0,107720.0,0.02747447]
[1751644542854,1.03279366,107730.0,107720.0,0.21307797]
[1751644543051,1.03279366,107730.0,107720.0,0.20355071]
[1751644543847,1.03579366,107730.0,107720.0,0.21279888]
[1751644544457,1.03579366,107730.0,107720.0,0.02719538]
[1751644547155,1.03579366,107730.0,107720.0,0.10161657]
[1751644547759,1.03579366,107730.0,107720.0,0.28722067]
[1751644548355,1.03579366,107730.0,107720.0,0.10161657]
[1751644549358,1.03579366,107730.0,107720.0,0.28722067]
[1751644549656,1.03579366,107730.0,107720.0,0.10161657]
[1751644551359,1.03579366,107730.0,107720.0,0.28722067]
[1751644551566,1.01678827,107730.0,107720.0,0.28722067]
[1751644551755,0.3631,107730.0,107720.0,0.95520754]
[1751644552061,0.13,107730.0,107720.0,1.07614594]
[1751644552252,0.13,107730.0,107720.0,1.10794594]
[1751644552449,0.3155874,107730.0,107720.0,1.96170594]
[1751644553758,0.5655874,107730.0,107720.0,1.99864034]
[1751644554562,0.5655874,107730.0,107720.0,1.94300194]
[1751644554861,0.12,107730.0,107720.0,1.99864034]
[1751644555062,0.3267148,107760.0,107750.0,0.1855533]
[1751644555361,0.2185366,107760.0,107750.0,0.87111681]
[1751644555565,0.2185366,107760.0,107750.0,0.96681681]
[1751644556354,0.5885366,107760.0,107750.0,1.02245521]
[1751644557456,0.5925366,107760.0,107750.0,1.02245521]
[1751644557855,0.5925366,107760.0,107750.0,0.66446834]
[1751644558167,0.2225366,107760.0,107750.0,1.00371279]
[1751644558351,0.5825366,107760.0,107750.0,1.00371279]
[1751644558752,0.006,107760.0,107750.0,1.00371279]
[1751644558959,0.01962967,107780.0,107770.0,0.185519]
[1751644559159,0.02962967,107780.0,107770.0,1.7511265]
[1751644559358,0.02962967,107780.0,107770.0,1.8453065]
[1751644560060,0.01,107780.0,107770.0,1.8453065]
[1751644560256,0.002,107800.0,107790.0,0.1854846]
[1751644560463,0.32317956,107800.0,107790.0,1.74840938]
[1751644560654,0.32317956,107800.0,107790.0,2.17524946]
[1751644560855,0.3246198,107810.0,107800.0,0.1854674]
[1751644561062,0.3246198,107810.0,107800.0,0.80345427]
[1751644561063,0.6546198,107810.0,107800.0,0.80345427]
[1751644561360,0.6546198,107810.0,107800.0,0.29685321]
[1751644561564,0.1854674,107800.0,107790.0,0.10941093]
[1751644561771,0.98615427,107800.0,107790.0,0.47276251]
[1751644561963,0.4181674,107800.0,107790.0,0.47276251]
[1751644562163,0.4081674,107800.0,107790.0,0.50961572]
[1751644562369,0.5681674,107800.0,107790.0,0.47276251]
[1751644562764,0.5681674,107800.0,107790.0,0.54602527]
[1751644562965,0.5681674,107800.0,107790.0,0.90401214]
[1751644563365,0.5681674,107800.0,107790.0,0.90437593]
[1751644564070,0.5681674,107800.0,107790.0,0.71889133]
[1751644564470,0.5711674,107800.0,107790.0,0.71989133]
[1751644564764,0.94818954,107800.0,107790.0,0.09190446]
[1751644564965,2.16237641,107800.0,107790.0,0.05141946]
[1751644565159,0.1855191,107770.0,107760.0,0.39705321]
[1751644565367,0.5255191,107770.0,107760.0,0.94415405]
[1751644565670,0.6229191,107770.0,107760.0,0.43861765]
[1751644565869,0.6229191,107770.0,107760.0,0.37571765]
[1751644566071,0.6229191,107770.0,107760.0,0.63571765]
[1751644566267,0.6229191,107770.0,107760.0,0.37571765]
[1751644566462,0.98090597,107770.0,107760.0,0.05458399]
[1751644566664,0.98090597,107770.0,107760.0,0.34691029]
[1751644566867,0.98090597,107770.0,107760.0,0.34686464]
[1751644567270,0.98190597,107770.0,107760.0,0.03086464]
[1751644567470,1.00111898,107770.0,107760.0,0.02168513]
[1751644567868,0.64313211,107770.0,107760.0,0.02168513]
[1751644568269,0.64313211,107770.0,107760.0,0.01768513]
[1751644568270,0.64213211,107770.0,107760.0,0.01768513]
[1751644568470,0.64513211,107770.0,107760.0,0.01868513]
[1751644568666,0.64513211,107770.0,107760.0,0.001]
[1751644568972,0.64513211,107770.0,107760.0,0.01831453]
[1751644569673,0.6259191,107770.0,107760.0,0.01831453]
[1751644569874,0.6259191,107770.0,107760.0,0.09107711]
[1751644572872,1.07361526,107770.0,107760.0,0.09107711]
[1751644573580,1.07361526,107770.0,107760.0,0.07376258]
[1751644574177,1.07361526,107770.0,107760.0,0.09158044]
[1751644577079,1.07361526,107770.0,107760.0,0.07376258]
[1751644577283,1.07361526,107770.0,107760.0,0.09139388]
[1751644581477,1.07061526,107770.0,107760.0,0.09039388]
[1751644581674,0.6319191,107770.0,107760.0,0.09239388]
[1751644581984,1.07961526,107770.0,107760.0,0.27793098]
[1751644582185,1.07961526,107770.0,107760.0,0.09239388]
[1751644583585,1.07961526,107770.0,107760.0,0.07476258]
[1751644586688,1.44041526,107770.0,107760.0,0.07476258]
[1751644589791,1.35086115,107770.0,107760.0,0.07476258]
[1751644594290,0.1855371,107760.0,107750.0,0.11194073]
[1751644594592,0.1855543,107750.0,107740.0,0.07318243]
[1751644594778,1.32869635,107750.0,107740.0,0.03707116]
[1751644594982,0.1855715,107740.0,107730.0,0.05481818]
[1751644595184,2.15427355,107740.0,107730.0,0.05481818]
[1751644595592,2.15427355,107740.0,107730.0,0.03707116]
[1751644595886,0.1855887,107730.0,107720.0,0.01774766]
[1751644596090,1.6968728,107730.0,107720.0,0.01774766]
[1751644596287,1.33873075,107730.0,107720.0,0.01774766]
[1751644597194,1.33973075,107730.0,107720.0,0.01874766]
[1751644597594,1.6978728,107730.0,107720.0,0.01874766]
[1751644598795,1.6978728,107730.0,107720.0,0.01974766]
[1751644609117,1.33973075,107730.0,107720.0,0.01974766]
[1751644609717,1.6978728,107730.0,107720.0,0.01974766]
[1751644615321,0.9815887,107730.0,107720.0,0.01974766]
[1751644615521,1.6978728,107730.0,107720.0,0.01974766]
[1751644622222,2.5513928,107730.0,107720.0,0.01974766]
[1751644623024,2.19325075,107730.0,107720.0,0.01974766]
[1751644623223,2.5513928,107730.0,107720.0,0.01974766]
[1751644623425,0.5902887,107730.0,107720.0,0.36014205]
[1751644623725,0.1865887,107730.0,107720.0,0.63714795]
[1751644623918,0.5365887,107730.0,107720.0,0.65714795]
[1751644624123,0.1865887,107730.0,107720.0,1.29336073]
[1751644624331,0.5665887,107730.0,107720.0,1.29336073]
[1751644624725,0.5665887,107730.0,107720.0,1.02336073]
[1751644625028,0.5665887,107730.0,107720.0,1.30336073]
[1751644625229,0.5665887,107730.0,107720.0,1.02336073]
[1751644625430,0.5665887,107730.0,107720.0,1.05947175]
[1751644625631,0.5665887,107730.0,107720.0,1.32947175]
[1751644625931,0.5665887,107730.0,107720.0,0.4971633]
[1751644626229,0.5665887,107730.0,107720.0,0.6827692]
[1751644626431,0.92473075,107730.0,107720.0,0.6827692]
[1751644626732,0.92473075,107730.0,107720.0,0.9627692]
[1751644627124,0.92473075,107730.0,107720.0,0.6019692]
[1751644627125,0.5665887,107730.0,107720.0,0.6019692]
[1751644627326,0.1865887,107730.0,107720.0,0.6019692]
[1751644627526,0.5365887,107730.0,107720.0,0.6019692]
[1751644627834,0.5365887,107730.0,107720.0,0.9627692]
[1751644628630,0.5365887,107730.0,107720.0,0.6019692]
[1751644628824,0.5365887,107730.0,107720.0,0.96290412]
[1751644630233,0.5365887,107730.0,107720.0,0.60210412]
[1751644630528,0.5365887,107730.0,107720.0,0.96290412]
[1751644630937,0.5365887,107730.0,107720.0,0.41649822]
[1751644631230,0.89473075,107730.0,107720.0,0.04975548]
[1751644631427,0.99053075,107730.0,107720.0,0.08683022]
[1751644631629,0.99053075,107730.0,107720.0,0.39683022]
[1751644631830,0.99053075,107730.0,107720.0,0.08683022]
[1751644632332,0.99053075,107730.0,107720.0,0.11793022]
[1751644632733,0.99053075,107730.0,107720.0,0.05653022]
[1751644632929,1.35133075,107730.0,107720.0,0.05653022]
[1751644636641,1.35133075,107730.0,107720.0,0.11217296]
[1751644637133,1.35133075,107730.0,107720.0,0.05653022]
[1751644638031,1.7094728,107730.0,107720.0,0.05653022]
[1751644638740,1.72923586,107730.0,107720.0,0.05653022]
[1751644639838,0.1856059,107720.0,107710.0,0.00185675]
[1751644640038,1.97482205,107720.0,107690.0,0.49950324]
[1751644640335,0.1856403,107700.0,107690.0,0.540156]
[1751644640542,0.5156403,107700.0,107690.0,0.179356]
[1751644640930,1.3691203,107700.0,107690.0,0.179356]
[1751644641135,1.47492079,107700.0,107690.0,0.146856]
[1751644641337,1.83306284,107700.0,107690.0,0.146856]
[1751644641534,1.50622079,107700.0,107690.0,0.146856]
[1751644641739,1.50622079,107700.0,107690.0,0.151856]
[1751644641937,1.50622079,107700.0,107690.0,0.3375136]
[1751644642132,1.50622079,107700.0,107690.0,0.151856]
[1751644642538,1.50622079,107700.0,107690.0,0.146856]
[1751644642736,1.50722079,107700.0,107690.0,0.151856]
[1751644642938,1.86536284,107700.0,107690.0,0.151856]
[1751644643136,1.86736284,107700.0,107690.0,0.151856]
[1751644643338,1.86736284,107700.0,107690.0,0.119856]
[1751644644440,1.86536284,107700.0,107690.0,0.087356]
[1751644644643,1.86736284,107700.0,107690.0,0.087356]
[1751644644839,1.86736284,107700.0,107690.0,0.082356]
[1751644645043,1.86736284,107700.0,107690.0,0.03072935]
[1751644645436,2.22816284,107700.0,107690.0,0.03072935]
[1751644648148,1.86736284,107700.0,107690.0,0.03072935]
[1751644648744,2.22816284,107700.0,107690.0,0.03072935]
[1751644649340,1.86736284,107700.0,107690.0,0.03072935]
[1751644649841,2.22816284,107700.0,107690.0,0.03072935]
[1751644650040,1.86736284,107700.0,107690.0,0.03072935]
[1751644650243,2.22816284,107700.0,107690.0,0.03072935]
[1751644650454,1.86736284,107700.0,107690.0,0.03072935]
[1751644650944,2.22816284,107700.0,107690.0,0.03072935]
[1751644651834,2.22816284,107700.0,107690.0,0.02163335]
[1751644653539,2.22816284,107700.0,107690.0,0.03107484]
[1751644654145,2.22816284,107700.0,107690.0,0.02163335]
[1751644654348,1.87002079,107700.0,107690.0,0.02163335]
[1751644654548,2.22816284,107700.0,107690.0,0.02163335]
[1751644657352,2.22816284,107700.0,107690.0,0.03081523]
[1751644658249,2.22816284,107700.0,107690.0,0.02163335]
[1751644658745,2.58630489,107700.0,107690.0,0.02163335]
[1751644659153,2.22816284,107700.0,107690.0,0.02163335]
[1751644662256,2.24789823,107700.0,107690.0,0.02163335]
[1751644666258,2.60604028,107700.0,107690.0,0.02163335]
[1751644666555,2.46681168,107700.0,107670.0,0.05748409]
[1751644666756,0.1856747,107680.0,107670.0,0.2050112]
[1751644666955,1.4093547,107680.0,107670.0,0.92395325]
[1751644667160,1.4093547,107680.0,107670.0,0.6807799]
[1751644667360,1.4093547,107680.0,107670.0,0.63431593]
[1751644667560,1.4093547,107680.0,107670.0,0.33180053]
[1751644667855,1.4093547,107680.0,107670.0,0.33580053]
[1751644668656,0.5556747,107680.0,107670.0,0.33580053]
[1751644668957,1.4093547,107680.0,107670.0,0.33580053]
[1751644669363,1.4093547,107680.0,107670.0,0.28017388]
[1751644669657,1.4093547,107680.0,107670.0,0.15012694]
[1751644670163,1.4093547,107680.0,107670.0,0.33581894]
[1751644670363,1.4093547,107680.0,107670.0,0.31727076]
[1751644670560,1.4093547,107680.0,107670.0,0.67807076]
[1751644670765,1.4113547,107680.0,107670.0,0.31727076]
[1751644670965,1.4113547,107680.0,107670.0,0.13157876]
[1751644671168,0.5576747,107680.0,107670.0,0.31727076]
[1751644671365,1.4113547,107680.0,107670.0,0.13157876]
[1751644671665,1.76949675,107680.0,107670.0,0.31727076]
[1751644672558,0.91581675,107680.0,107670.0,0.13157876]
[1751644672763,1.76953675,107680.0,107670.0,0.31727066]
[1751644673475,1.80203675,107680.0,107670.0,0.12957876]
[1751644673673,1.83393675,107680.0,107670.0,0.12957876]
[1751644673871,1.83393675,107680.0,107670.0,0.31527076]
[1751644674869,0.91681675,107680.0,107670.0,0.31527076]
[1751644675069,1.4123547,107680.0,107670.0,1.05276099]
[1751644675774,0.92672,107680.0,107670.0,1.31276099]
[1751644675976,1.3823947,107680.0,107670.0,1.31276099]
[1751644677679,0.5286747,107680.0,107670.0,1.31276099]
[1751644678176,0.5286747,107680.0,107670.0,1.25711593]
[1751644678579,0.5286747,107680.0,107670.0,1.33131917]
[1751644679685,0.32569718,107700.0,107690.0,0.1856574]
[1751644679980,1.55937718,107700.0,107690.0,0.59943047]
[1751644680179,1.55937718,107700.0,107690.0,1.02373047]
[1751644680678,1.55933718,107700.0,107690.0,1.02373047]
[1751644680980,1.56033718,107700.0,107690.0,0.66658842]
[1751644681181,1.56033718,107700.0,107690.0,0.30578842]
[1751644681480,1.56133718,107700.0,107690.0,0.30578842]
[1751644681684,1.56133718,107700.0,107690.0,0.66658842]
[1751644681877,1.56133718,107700.0,107690.0,0.30578842]
[1751644682075,1.06583923,107700.0,107690.0,0.66658842]
[1751644683081,0.70769718,107700.0,107690.0,0.66658842]
[1751644683576,0.70769718,107700.0,107690.0,0.48093102]
[1751644683775,1.12623923,107700.0,107690.0,0.30578842]
[1751644684785,1.12623923,107700.0,107690.0,0.24228842]
[1751644685980,1.12623923,107700.0,107690.0,0.05663102]
[1751644688486,1.12623923,107700.0,107690.0,0.24228842]
[1751644688680,0.76809718,107700.0,107690.0,0.60308842]
[1751644688984,1.12623923,107700.0,107690.0,0.24228842]
[1751644689179,1.12623923,107700.0,107690.0,0.05663102]
[1751644689387,1.12623923,107700.0,107690.0,0.24228842]
[1751644690585,1.12623923,107700.0,107690.0,0.05663102]
[1751644692887,1.10650384,107700.0,107690.0,0.24228832]
[1751644693083,1.95998384,107700.0,107690.0,0.60308832]
[1751644693281,1.60184179,107700.0,107690.0,0.60308832]
[1751644693487,1.60184179,107700.0,107690.0,0.05663102]
[1751644693692,1.60184179,107700.0,107690.0,0.24228832]
[1751644694082,1.60184179,107700.0,107690.0,0.24228842]
[1751644694887,1.60184179,107700.0,107690.0,0.05663102]
[1751644695581,1.95998384,107700.0,107690.0,0.05663102]
[1751644695977,1.95998384,107700.0,107690.0,0.09368222]
[1751644698481,1.95998384,107700.0,107690.0,0.05663102]
[1751644699092,1.95998384,107700.0,107690.0,0.24228842]
[1751644699686,1.60184179,107700.0,107690.0,0.24228842]
[1751644700891,1.95998384,107700.0,107690.0,0.27934801]
[1751644702392,1.95998384,107700.0,107690.0,0.24228842]
[1751644703990,1.95898384,107700.0,107690.0,0.24128842]
[1751644704191,1.95998384,107700.0,107690.0,0.05663102]
[1751644704491,1.95898384,107700.0,107690.0,0.05663102]
[1751644704692,1.95998384,107700.0,107690.0,0.05763102]
[1751644706305,2.32066384,107700.0,107690.0,0.05763102]
[1751644706506,2.67880589,107700.0,107690.0,0.05763102]
[1751644706698,2.67880589,107700.0,107690.0,0.09473259]
[1751644707000,2.67880589,107700.0,107690.0,0.03910157]
[1751644707399,2.67880589,107700.0,107690.0,0.09474457]
[1751644707800,2.67880589,107700.0,107690.0,0.03911355]
[1751644710305,2.32066384,107700.0,107690.0,0.002]
[1751644710506,1.82544589,107700.0,107690.0,0.002]
[1751644710710,2.91676589,107700.0,107690.0,0.002]
[1751644711407,1.84823535,107700.0,107690.0,0.002]
[1751644711596,2.93959535,107700.0,107690.0,0.002]
[1751644714810,2.95907243,107700.0,107690.0,0.002]
[1751644715500,0.1856747,107680.0,107670.0,0.06665114]
[1751644715700,0.1856747,107680.0,107670.0,0.05748846]
[1751644715701,1.39717675,107680.0,107670.0,0.05748846]
[1751644715909,2.25287467,107680.0,107670.0,0.05748846]
[1751644716103,0.1856919,107670.0,107660.0,0.09164961]
[1751644716302,0.92663395,107670.0,107660.0,0.01747491]
[1751644717010,0.92463395,107670.0,107660.0,0.01747491]
[1751644717308,0.92463395,107670.0,107660.0,0.02693307]
[1751644717309,0.92363395,107670.0,107660.0,0.02693307]
[1751644717699,0.92563395,107670.0,107660.0,0.02793307]
[1751644717903,0.92663395,107670.0,107660.0,0.02993307]
[1751644718110,0.92463395,107670.0,107660.0,0.02893307]
[1751644718308,0.92663395,107670.0,107660.0,0.02993307]
[1751644718707,0.92663395,107670.0,107660.0,0.01245816]
[1751644719012,0.92663395,107670.0,107660.0,0.02616915]
[1751644719305,0.5914993,107670.0,107660.0,0.0262247]
[1751644719510,1.80304135,107670.0,107660.0,0.0262247]
[1751644719707,0.94964135,107670.0,107660.0,0.01676654]